bitfinex-derivatives/quotes_ETHF0:USTF0_20251021
["timestamp","ask_amount","ask_price","bid_price","bid_amount"]
[1761048975767,0.46520244,3892.2,3892.1,0.7707]
[1761048976070,0.00286244,3892.2,3892.1,1.23306]
[1761048976260,0.23176244,3892.2,3892.1,0.7707]
[1761048976560,1.22890244,3892.2,3892.1,0.7707]
[1761048977264,0.00286244,3892.2,3892.1,0.7707]
[1761048978365,0.00286244,3892.2,3892.1,1.23306]
[1761048979864,0.46520244,3892.2,3892.1,1.23306]
[1761048980159,0.46520244,3892.2,3892.1,0.7707]
[1761048980365,0.46520244,3892.2,3892.1,1.23306]
[1761048980661,0.46520244,3892.2,3892.1,0.7707]
[1761048980866,0.68650244,3892.2,3892.1,0.7707]
[1761048981159,0.91300244,3892.2,3892.1,0.7707]
[1761048982668,0.46520244,3892.2,3892.1,1.23306]
[1761048983365,0.46520244,3892.2,3892.1,0.7707]
[1761048984469,0.46520244,3892.2,3892.1,1.23306]
[1761048985268,0.00286244,3892.2,3892.1,1.23306]
[1761048986670,0.46520244,3892.2,3892.1,0.7707]
[1761048986970,0.68650244,3892.2,3892.1,0.7707]
[1761048987468,0.68650244,3892.2,3892.1,1.23306]
[1761048989564,0.22416244,3892.2,3892.1,1.23306]
[1761048989770,0.00286244,3892.2,3892.1,1.23306]
[1761048992569,0.6737,3893.4,3893.3,0.7921]
[1761048992785,1.2433,3893.4,3893.3,0.3389]
[1761048993273,40.8,3893.5,3892.8,0.91547]
[1761048993274,0.2115,3892.9,3892.8,0.91547]
[1761048993463,0.21348717,3892.9,3892.8,0.45519917]
[1761048993873,0.21348717,3892.9,3892.8,0.79409917]
[1761048994175,0.67574717,3892.9,3892.8,0.79409917]
[1761048995875,0.46424717,3892.9,3892.8,0.79409917]
[1761048996677,0.46424717,3892.9,3892.8,1.25636917]
[1761048997771,0.00198717,3892.9,3892.8,1.25636917]
[1761048998568,0.46424717,3892.9,3892.8,1.25636917]
[1761048998768,0.46424717,3892.9,3892.8,0.79409917]
[1761048999276,0.67574717,3892.9,3892.8,0.79409917]
[1761049000973,0.67574717,3892.9,3892.8,1.25636917]
[1761049001179,0.46424717,3892.9,3892.8,1.25636917]
[1761049002281,0.00198717,3892.9,3892.8,1.25636917]
[1761049002481,0.46424717,3892.9,3892.8,1.25636917]
[1761049005385,0.46424717,3892.9,3892.8,0.79409917]
[1761049005593,0.67574717,3892.9,3892.8,0.79409917]
[1761049006086,0.90034717,3892.9,3892.8,0.79409917]
[1761049006277,1.24534717,3892.9,3892.8,0.79409917]
[1761049006689,1.24534717,3892.9,3892.8,0.56959917]
[1761049007692,1.24534717,3892.9,3892.8,0.79409917]
[1761049008392,1.24534717,3892.9,3892.8,0.56959917]
[1761049009182,1.24534717,3892.9,3892.8,0.00199917]
[1761049009684,6.24534717,3892.9,3892.8,0.00199917]
[1761049010689,47.04534717,3892.9,3892.8,0.00199917]
[1761049016510,0.90034717,3892.9,3892.8,0.79409917]
[1761049016709,1.24534717,3892.9,3892.8,0.79409917]
[1761049020615,0.90034717,3892.9,3892.8,0.79409917]
[1761049020807,0.67574717,3892.9,3892.8,0.79409917]
[1761049021409,0.00198717,3892.9,3892.8,1.25636917]
[1761049022110,0.00198717,3892.9,3892.8,1.94400085]
[1761049023519,0.00198717,3892.9,3892.8,1.25636917]
[1761049024114,0.00198717,3892.9,3892.8,1.94670002]
[1761049024513,0.00198717,3892.9,3892.8,1.25636917]
[1761049025518,0.46424717,3892.9,3892.8,1.25636917]
[1761049028523,0.00198717,3892.9,3892.8,1.25636917]
[1761049029315,0.00198717,3892.9,3892.8,2.17686499]
[1761049030815,0.00198717,3892.9,3892.8,1.25636917]
[1761049031915,1.15542,3893.8,3892.8,1.25636917]
[1761049031916,41.72423544,3894.3,3893.7,0.442]
[1761049032115,0.90404,3893.9,3893.8,0.7803]
[1761049032320,1.23574,3893.9,3893.8,0.7803]
[1761049032714,0.3317,3894.2,3893.8,0.7803]
[1761049032919,1.23903749,3894.2,3894.1,0.7803]
[1761049033214,0.44522749,3894.2,3894.1,0.7803]
[1761049033522,0.68543749,3894.2,3894.1,0.7803]
[1761049035825,0.22332749,3894.2,3894.1,0.7803]
[1761049036225,0.00332749,3894.2,3894.1,1.24242]
[1761049036724,0.00332749,3894.2,3894.1,1.93176531]
[1761049037024,0.00332749,3894.2,3894.1,1.24242]
[1761049037321,40.8,3895.0,3894.9,0.442]
[1761049037518,1.23561,3895.0,3894.9,0.442]
[1761049037918,1.23561,3895.0,3894.9,0.7837]
[1761049038120,0.7736,3895.0,3894.9,0.7837]
[1761049038316,0.7736,3895.0,3894.1,1.15529]
[1761049038317,1.00458,3894.4,3894.3,0.3417]
[1761049038511,1.22048,3894.4,3894.3,0.3417]
[1761049038717,0.7584,3894.1,3894.0,0.3417]
[1761049039014,0.4321,3894.1,3894.0,0.9152]
[1761049039212,1.22052,3894.1,3894.0,0.9152]
[1761049040332,0.4321,3894.1,3894.0,0.9152]
[1761049041214,0.4321,3894.1,3894.0,1.37733]
[1761049041417,0.2159,3894.1,3894.0,1.37733]
[1761049041624,0.678,3894.3,3894.1,0.3417]
[1761049041829,0.678,3894.3,3894.0,1.03563]
[1761049041830,0.46209,3894.4,3894.3,0.7772]
[1761049042125,0.67797,3894.6,3894.5,0.9152]
[1761049042326,0.89417,3894.6,3894.5,0.9152]
[1761049042627,1.22047,3894.6,3894.5,0.9152]
[1761049043226,0.89417,3894.6,3894.5,0.9152]
[1761049044522,0.67797,3894.6,3894.5,0.9152]
[1761049046526,0.46207,3894.6,3894.5,0.9152]
[1761049046825,9.8054,3894.9,3894.8,0.7772]
[1761049047023,9.8054,3894.9,3894.8,0.5662]
[1761049047728,10.26742,3894.9,3894.8,0.5662]
[1761049048823,9.94112,3894.9,3894.8,0.7865]
[1761049050524,9.72492,3894.9,3894.8,0.7865]
[1761049051123,9.50902,3894.9,3894.8,0.7865]
[1761049051525,0.46202,3894.9,3894.8,0.7865]
[1761049052129,0.68452,3894.9,3894.8,0.7865]
[1761049052726,0.90392,3894.9,3894.8,0.7865]
[1761049052933,1.25166,3894.6,3894.5,0.3515]
[1761049053533,1.25166,3894.6,3894.5,0.6671]
[1761049053735,1.25166,3894.6,3894.5,0.8874]
[1761049054422,0.90396,3894.6,3894.5,1.34947]
[1761049054830,0.90396,3894.6,3894.5,0.8874]
[1761049056332,1.25166,3894.6,3894.5,0.8874]
[1761049057032,1.25166,3894.6,3894.5,0.6671]
[1761049058722,0.90396,3894.6,3894.5,0.8874]
[1761049059638,0.2225,3894.6,3894.5,1.34947]
[1761049060227,0.46206,3894.7,3894.6,1.21146]
[1761049060738,0.46206,3894.7,3894.6,0.7494]
[1761049060939,0.68456,3894.7,3894.6,0.7494]
[1761049062027,0.3477,3894.6,3894.5,0.3156]
[1761049062235,0.7896,3894.6,3894.5,0.3156]
[1761049062434,1.25166,3894.6,3894.5,0.3156]
[1761049063534,1.25166,3894.6,3894.5,0.5291]
[1761049063737,1.25166,3894.6,3894.3,1.148943]
[1761049063738,0.46208,3894.4,3894.3,0.686853]
[1761049063938,1.25173,3894.0,3893.9,0.3156]
[1761049064644,1.25173,3894.0,3893.9,0.5291]
[1761049065240,0.46212,3894.1,3894.0,0.8805]
[1761049065442,0.46212,3894.1,3894.0,1.34263]
[1761049065643,0.2225,3894.3,3894.2,0.7494]
[1761049065849,0.68459,3894.3,3894.2,0.7494]
[1761049066347,0.68459,3894.3,3894.2,1.21151]
[1761049066646,0.68458,3894.5,3894.4,0.7494]
[1761049066846,0.2225,3894.5,3894.4,0.7494]
[1761049067049,0.68457,3894.5,3894.4,0.7494]
[1761049067246,1.25167,3894.5,3894.4,0.5291]
[1761049067949,0.90397,3894.5,3894.4,0.7494]
[1761049068544,1.25167,3894.5,3894.4,0.7494]
[1761049069246,0.90397,3894.5,3894.4,0.7494]
[1761049069447,0.68457,3894.5,3894.4,0.7494]
[1761049070343,0.90397,3894.5,3894.4,0.7494]
[1761049070547,1.25167,3894.5,3894.4,0.7494]
[1761049071849,0.90397,3894.5,3894.4,0.7494]
[1761049072346,1.25167,3894.5,3894.4,0.5291]
[1761049073052,1.25167,3894.5,3894.4,0.7494]
[1761049074346,1.25167,3894.5,3894.4,0.5291]
[1761049077548,0.90397,3894.5,3894.4,0.7494]
[1761049077745,0.68457,3894.5,3894.4,0.7494]
[1761049078856,0.68457,3894.5,3894.4,1.21148]
[1761049079051,0.68457,3894.5,3894.4,0.7494]
[1761049080358,0.89577,3894.5,3894.4,0.7494]
[1761049081150,1.24077,3894.5,3894.4,0.7494]
[1761049083656,0.89577,3894.5,3894.4,0.7494]
[1761049083856,1.24077,3894.5,3894.4,0.7494]
[1761049086853,10.2031,3894.8,3894.4,1.21148]
[1761049086854,9.393,3894.8,3894.4,1.21148]
[1761049087054,1.1581897,3895.0,3894.6,0.4516]
[1761049087055,0.69345,3894.7,3894.6,0.4516]
[1761049087551,0.69345,3894.7,3894.6,0.7947]
[1761049088357,0.90465,3894.7,3894.6,0.7947]
[1761049088554,0.90465,3894.7,3894.6,1.25676]
[1761049088755,0.90465,3894.7,3894.6,0.7947]
[1761049089756,9.9527597,3895.0,3894.9,0.7947]
[1761049089963,10.2977597,3895.0,3894.9,0.7947]
[1761049092868,9.9527597,3895.0,3894.9,0.7947]
[1761049094274,10.2977597,3895.0,3894.9,0.7947]
[1761049095577,10.2977597,3895.0,3894.9,0.5624]
[1761049097077,10.2977597,3895.0,3894.9,0.7947]
[1761049099368,9.9527597,3895.0,3894.9,0.7947]
[1761049099776,10.2760597,3895.0,3894.9,0.7947]
[1761049100176,1.2310597,3895.0,3894.9,0.7947]
[1761049101379,0.4457497,3895.0,3894.9,1.25672]
[1761049101580,0.6912597,3895.0,3894.9,1.943573]
[1761049101780,0.9156597,3895.0,3894.9,1.943573]
[1761049101982,0.4536497,3895.0,3894.9,1.943573]
[1761049102383,0.9156597,3895.0,3894.9,1.943573]
[1761049102681,0.4536497,3895.0,3894.9,1.943573]
[1761049103483,0.9156597,3895.0,3894.9,1.943573]
[1761049103679,0.6912597,3895.0,3894.9,1.943573]
[1761049104184,0.2292497,3895.0,3894.9,1.943573]
[1761049104386,0.6912597,3895.0,3894.9,1.943573]
[1761049107885,0.0031497,3895.0,3894.9,6.943573]
[1761049110490,0.0031497,3895.0,3894.9,1.943573]
[1761049111190,0.4651597,3895.0,3894.9,1.943573]
[1761049111492,0.6755597,3895.0,3894.9,1.943573]
[1761049112588,0.0031497,3895.0,3894.9,1.943573]
[1761049115286,0.0031497,3895.0,3894.9,1.25672]
[1761049116293,1.2169597,3895.0,3894.9,1.25672]
[1761049116988,0.8976597,3895.0,3894.9,0.7947]
[1761049118586,0.8976597,3895.0,3894.9,1.25672]
[1761049119595,0.6755597,3895.0,3894.9,1.25672]
[1761049121991,1.2169597,3895.0,3894.9,1.25961569]
[1761049122585,1.2169597,3895.0,3894.9,1.48751569]
[1761049122796,0.8976597,3895.0,3894.9,1.48751569]
[1761049122997,1.2169597,3895.0,3894.9,1.48751569]
[1761049125892,1.2169597,3895.0,3894.9,1.94953569]
[1761049126396,0.8976597,3895.0,3894.9,1.26062]
[1761049126591,0.0031497,3895.0,3894.9,1.26062]
[1761049126796,0.0031497,3895.0,3894.9,2.17974708]
[1761049130304,0.0031497,3895.0,3894.9,1.26062]
[1761049131102,0.4651597,3895.0,3894.9,1.26062]
[1761049136005,0.6755597,3895.0,3894.9,2.17995932]
[1761049136312,0.0031497,3895.0,3894.9,2.17995932]
[1761049136511,0.0031497,3895.0,3894.9,2.63931062]
[1761049136703,0.0031497,3895.0,3894.9,1.26062]
[1761049138204,1.2393597,3895.0,3894.9,0.80512]
[1761049138414,0.6913597,3895.0,3894.9,0.7861]
[1761049139108,0.6913597,3895.0,3894.9,1.24812]
[1761049139299,0.0031497,3895.0,3894.9,1.24812]
[1761049142914,0.0031497,3895.0,3894.9,2.62681062]
[1761049143300,0.92423544,3895.8,3894.9,6.82169062]
[1761049143502,0.0726,3897.0,3894.9,6.82169062]
[1761049143503,0.4618,3896.8,3896.7,0.3363]
[1761049143805,0.2262,3897.1,3897.0,0.9143]
[1761049144105,0.68796,3897.1,3897.0,0.9143]
[1761049144303,1.23601,3896.7,3896.6,0.5656]
[1761049144508,0.90381,3896.7,3896.6,0.7793]
[1761049144709,0.90381,3896.7,3896.6,0.78160285]
[1761049145115,1.23601,3896.7,3896.6,0.78160285]
[1761049145613,0.442,3896.7,3896.6,0.78160285]
[1761049145909,0.2262,3896.7,3896.6,0.78160285]
[1761049146121,0.688,3896.9,3896.7,0.3363]
[1761049146305,0.46490658,3897.1,3896.9,0.3363]
[1761049146507,0.46490658,3897.1,3897.0,0.9143]
[1761049146711,0.69110658,3897.1,3897.0,0.9143]
[1761049148215,0.00313658,3897.1,3897.0,0.9143]
[1761049150916,0.0663,3898.0,3897.0,0.9143]
[1761049150917,0.2569,3899.5,3898.8,0.3363]
[1761049151213,1.15344,3900.4,3898.0,0.135]
[1761049151214,0.442,3900.6,3900.5,0.2293]
[1761049151418,0.5584,3900.5,3900.2,0.3363]
[1761049151615,0.68751,3901.0,3900.9,0.2293]
[1761049151807,0.22895998,3901.0,3900.9,0.78171583]
[1761049152013,0.77695998,3901.0,3900.9,0.33871583]
[1761049152211,5.77695998,3901.0,3900.9,0.00241583]
[1761049152519,5.86405998,3901.0,3900.9,0.00241583]
[1761049152714,0.77695998,3901.0,3900.9,0.56801583]
[1761049153019,5.44475998,3901.0,3900.9,0.78171583]
[1761049153314,0.44475998,3901.0,3900.9,0.78171583]
[1761049153813,0.00275998,3901.0,3900.9,0.78171583]
[1761049156121,0.77695998,3901.0,3900.9,0.33871583]
[1761049156316,0.77695998,3901.0,3900.9,0.56801583]
[1761049156518,0.44475998,3901.0,3900.9,0.78171583]
[1761049157216,0.77695998,3901.0,3900.9,0.56801583]
[1761049157415,0.77695998,3901.0,3900.9,0.00241583]
[1761049158215,0.42275998,3901.0,3900.9,0.80241583]
[1761049158417,0.75395998,3901.0,3900.9,0.80241583]
[1761049158625,0.75395998,3901.0,3900.9,0.57191583]
[1761049159023,0.75395998,3901.0,3900.9,0.34051583]
[1761049159721,5.84105998,3901.0,3900.9,0.00241583]
[1761049160424,46.64105998,3901.0,3900.9,0.00241583]
[1761049161523,46.64105998,3901.0,3900.0,0.7045]
[1761049161524,1.21261,3900.1,3900.0,0.7045]
[1761049161826,1.21261,3900.1,3900.0,0.3381]
[1761049162319,1.21261,3900.1,3900.0,0.9385]
[1761049162320,0.88141,3900.1,3900.0,0.9385]
[1761049162526,0.88141,3900.1,3900.0,0.94117837]
[1761049162728,0.67131,3900.1,3900.0,0.94117837]
[1761049163027,1.21261,3900.1,3900.0,0.00267837]
[1761049163228,1.21261,3900.1,3900.0,0.57217837]
[1761049163434,0.46141,3900.1,3900.0,0.94117837]
[1761049165825,0.88141,3900.1,3900.0,0.94117837]
[1761049166125,0.67131,3900.1,3900.0,0.94117837]
[1761049166625,1.21261,3900.1,3900.0,0.94117837]
[1761049167415,0.67131,3900.1,3900.0,0.94117837]
[1761049167727,0.88141,3900.1,3900.0,0.94117837]
[1761049168022,0.67111,3900.1,3900.0,0.94117837]
[1761049168822,0.46141,3900.1,3900.0,0.94117837]
[1761049169122,0.4269,3900.9,3900.8,0.7706]
[1761049169322,1.22971,3900.9,3900.8,0.7706]
[1761049169517,1.22971,3900.9,3900.8,0.5424]
[1761049169718,0.46135,3900.6,3900.5,0.1392]
[1761049169923,0.88825,3900.6,3900.5,0.58]
[1761049170122,0.46135,3900.6,3900.5,0.58]
[1761049170325,0.67105,3900.6,3900.5,0.9098]
[1761049172117,0.46135,3900.6,3900.5,0.9098]
[1761049172314,0.00275998,3901.0,3900.7,0.4408]
[1761049172315,0.46134,3900.8,3900.7,0.4408]
[1761049172532,0.46134,3900.8,3900.7,0.7706]
[1761049172924,0.67104,3900.8,3900.7,0.7706]
[1761049175728,0.88824,3900.8,3900.7,0.7706]
[1761049176732,1.22974,3900.8,3900.7,0.7706]
[1761049176933,0.88824,3900.8,3900.7,0.7706]
[1761049178527,0.00275998,3901.0,3900.9,0.4408]
[1761049178528,0.46406998,3901.0,3900.9,0.4408]
[1761049178833,0.46406998,3901.0,3900.9,0.7706]
[1761049179035,0.67376998,3901.0,3900.9,0.7706]
[1761049180632,0.00275998,3901.0,3900.9,0.7706]
[1761049180938,0.46405998,3901.0,3900.9,0.7706]
[1761049181232,0.89095998,3901.0,3900.9,0.7706]
[1761049181533,1.23245998,3901.0,3900.9,0.7706]
[1761049181832,0.67375998,3901.0,3900.9,0.7706]
[1761049182235,0.89095998,3901.0,3900.9,0.7706]
[1761049183128,1.23245998,3901.0,3900.9,0.7706]
[1761049183432,0.89095998,3901.0,3900.9,0.7706]
[1761049183622,0.00275998,3901.0,3900.9,0.7706]
[1761049183828,0.46405998,3901.0,3900.9,0.7706]
[1761049184525,0.67375998,3901.0,3900.9,0.7706]
[1761049184929,0.67376998,3901.0,3900.7,0.4408]
[1761049185122,0.67375998,3901.0,3900.9,0.7706]
[1761049186432,0.46405998,3901.0,3900.9,0.7706]
[1761049187934,0.8567,3901.3,3901.2,1.23188]
[1761049188135,0.8567,3901.3,3901.2,1.91207698]
[1761049188326,0.46122,3901.7,3901.6,0.7706]
[1761049188327,1.22963,3901.7,3901.6,0.7706]
[1761049188531,1.22963,3901.7,3901.6,0.5424]
[1761049189027,0.89065482,3901.7,3901.6,0.7706]
[1761049189629,1.23215482,3901.7,3901.6,0.5424]
[1761049189834,1.23215482,3901.7,3901.6,0.3298]
[1761049191031,0.671,3901.1,3901.0,1.26019698]
[1761049191238,0.671,3901.1,3901.0,0.58]
[1761049191438,0.46129,3901.2,3901.0,0.58]
[1761049191629,0.4269,3901.6,3901.5,0.9098]
[1761049191932,0.7684,3901.6,3901.5,0.3298]
[1761049192327,0.7684,3901.6,3900.8,0.89279698]
[1761049192328,0.46132,3900.9,3900.8,0.89279698]
[1761049192537,0.67102,3900.9,3900.8,0.4408]
[1761049193034,0.67102,3900.9,3900.8,0.7706]
[1761049193534,0.46132,3901.0,3900.9,0.3298]
[1761049193835,0.46132,3901.0,3900.9,0.7706]
[1761049194932,0.67102,3901.0,3900.9,0.7706]
[1761049195135,0.88822,3901.0,3900.9,0.7706]
[1761049195326,1.22972,3901.0,3900.9,0.7706]
[1761049195731,0.88822,3901.0,3900.9,0.7706]
[1761049197038,0.46132,3901.0,3900.9,0.7706]
[1761049197339,0.67102,3901.0,3900.9,0.7706]
[1761049197538,0.88822,3901.0,3900.9,0.7706]
[1761049197944,1.22272,3901.0,3900.9,0.7706]
[1761049198241,0.88822,3901.0,3900.9,0.7706]
[1761049200232,0.2097,3901.0,3900.9,0.7572]
[1761049200434,1.23619,3901.2,3901.1,0.5254]
[1761049200632,1.23622,3900.9,3900.8,1.20559698]
[1761049200833,1.23622,3900.9,3900.8,0.3156]
[1761049201755,1.23623,3900.8,3900.7,0.3156]
[1761049202330,1.15327,3901.1,3900.0,0.14117837]
[1761049202331,0.7749,3900.5,3900.4,0.3156]
[1761049202532,1.23629,3900.3,3900.2,1.20559698]
[1761049202840,1.23629,3900.3,3900.2,0.5254]
[1761049203032,0.90179,3900.3,3900.2,0.7402]
[1761049203535,1.23629,3900.3,3900.2,0.7402]
[1761049204148,1.23629,3900.3,3900.2,0.5254]
[1761049204338,1.23632,3900.1,3900.0,0.00267837]
[1761049204536,1.43567294,3900.1,3900.0,0.00267837]
[1761049204839,0.4404,3900.1,3900.0,0.74287837]
[1761049205043,0.91230061,3900.5,3900.3,0.3156]
[1761049205243,1.84402537,3900.7,3900.5,0.8753]
[1761049205244,0.7749,3900.6,3900.5,0.8753]
[1761049205442,0.7749,3900.6,3900.0,0.13777837]
[1761049205443,0.3345,3900.5,3900.2,0.68019698]
[1761049205646,0.7749,3900.4,3900.3,0.3156]
[1761049205834,0.5616,3900.7,3900.3,0.7402]
[1761049206040,0.46137,3900.6,3900.5,0.1351]
[1761049206338,0.46137,3900.6,3900.5,0.5597]
[1761049206339,0.90177,3900.6,3900.5,0.5597]
[1761049206544,0.90177,3900.6,3900.5,0.8753]
[1761049208145,1.23627,3900.6,3900.5,0.8753]
[1761049208643,1.35270061,3901.3,3901.2,0.7402]
[1761049208944,0.4404,3901.0,3900.8,0.68019698]
[1761049209134,0.0725,3901.5,3900.5,1.04749159]
[1761049209135,0.46134,3900.8,3900.6,0.99579698]
[1761049209342,0.7749,3900.7,3900.6,0.5254]
[1761049209641,0.4404,3901.0,3900.7,0.3156]
[1761049209938,1.13940061,3901.5,3901.0,0.4507]
[1761049210139,0.4404,3901.5,3901.4,0.7402]
[1761049210533,0.4404,3901.5,3901.0,0.59642]
[1761049210534,0.22962482,3901.7,3901.6,0.4246]
[1761049210738,0.00252482,3901.7,3901.6,0.7402]
[1761049211353,0.8978,3902.0,3901.9,0.2098]
[1761049211648,40.8,3902.6,3902.0,0.3156]
[1761049211946,0.022,3902.8,3902.7,0.2098]
[1761049212249,0.022,3902.8,3902.7,1.20132]
[1761049212551,0.3345,3904.9,3903.7,0.3156]
[1761049212841,0.2271,3903.9,3903.8,0.68513755]
[1761049213046,0.1268,3904.5,3903.7,0.21216638]
[1761049213240,0.00254462,3904.9,3904.8,0.7402]
[1761049213433,0.56414462,3904.9,3904.8,0.4246]
[1761049213637,0.9017,3904.5,3904.4,0.2098]
[1761049213838,0.7749,3904.2,3904.1,0.2098]
[1761049214036,0.1268,3904.5,3904.1,0.7402]
[1761049214241,0.00254462,3904.9,3904.3,0.3156]
[1761049214242,0.33704462,3904.9,3904.3,0.3156]
[1761049214447,0.3345,3904.3,3904.1,3.30007729]
[1761049214644,0.3345,3904.3,3903.9,0.3156]
[1761049214946,0.58778,3904.0,3903.7,0.00236638]
[1761049215245,0.3345,3903.8,3903.7,0.00236638]
[1761049215449,0.1268,3904.5,3903.7,0.31796638]
[1761049215745,0.3345,3904.3,3903.8,0.3156]
[1761049215945,0.46094,3904.3,3903.8,0.3156]
[1761049216146,0.79544,3904.3,3903.8,0.3156]
[1761049216346,0.1268,3904.5,3903.8,0.3156]
[1761049216646,0.3345,3904.4,3904.0,0.3156]
[1761049217545,0.46093,3904.4,3904.0,0.3156]
[1761049217745,0.3345,3904.8,3904.3,0.3156]
[1761049218045,0.00254462,3904.9,3904.3,0.3156]
[1761049218046,0.3449,3904.5,3904.3,0.3156]
[1761049218247,0.3449,3904.7,3904.3,0.3156]
[1761049218443,0.3449,3904.6,3904.3,0.3156]
[1761049218841,0.3449,3904.5,3904.3,0.3156]
[1761049219041,0.3449,3904.7,3904.3,0.3156]
[1761049219446,0.8058,3904.7,3904.3,0.3156]
[1761049219645,0.46092,3904.4,3904.3,0.3156]
[1761049219843,0.3449,3904.3,3904.1,0.3298]
[1761049220042,0.00254462,3904.9,3904.3,0.3298]
[1761049220043,0.80578,3904.8,3904.3,0.3298]
[1761049220240,0.3449,3904.7,3904.5,0.46091]
[1761049220548,0.00254462,3904.9,3904.8,0.7917]
[1761049220750,0.3449,3906.1,3904.9,0.46086]
[1761049220948,0.80562,3906.1,3905.9,0.7917]
[1761049221153,0.80562,3906.1,3906.0,0.3298]
[1761049221349,0.3449,3906.1,3906.0,0.3298]
[1761049221642,0.3449,3906.1,3905.5,0.46079]
[1761049221643,0.4752,3906.0,3905.6,0.3298]
[1761049221844,0.4752,3906.0,3905.3,0.46081]
[1761049221845,0.3449,3905.7,3905.4,0.3298]
[1761049222040,0.13219683,3906.0,3905.4,0.3298]
[1761049222349,0.00189683,3906.0,3905.9,0.3298]
[1761049223742,0.00189683,3906.0,3905.9,0.2298]
[1761049224656,0.13219683,3906.0,3904.5,0.1277]
[1761049224948,0.3449,3905.2,3904.9,0.46085]
[1761049225349,1.28403683,3906.0,3904.5,0.1277]
[1761049225350,0.46078,3905.6,3904.6,9.241]
[1761049225547,0.46079,3905.5,3905.2,0.46082]
[1761049225747,0.80573,3905.2,3904.6,0.2403]
[1761049225946,0.3449,3905.0,3904.7,0.2403]
[1761049226144,0.3449,3904.9,3904.7,0.70118]
[1761049226555,0.3449,3904.9,3904.6,3.742]
[1761049226556,0.3449,3905.1,3904.8,0.2403]
[1761049226743,0.3449,3904.9,3904.8,0.2403]
[1761049226944,0.3449,3905.3,3905.0,0.46084]
[1761049227146,0.80569,3905.5,3905.2,0.2403]
[1761049227450,0.80569,3905.5,3904.6,1.15222]
[1761049227451,0.3449,3905.5,3905.4,0.2403]
[1761049227747,0.3459,3905.7,3905.5,0.2402]
[1761049227947,0.3459,3905.7,3904.9,1.15216]
[1761049227948,0.00189683,3906.0,3905.8,0.2402]
[1761049228142,0.00189683,3906.0,3905.9,0.2402]
[1761049229448,0.00189683,3906.0,3905.9,5.2402]
[1761049232956,0.00189683,3906.0,3905.9,5.6908]
[1761049233247,0.3459,3905.9,3905.7,0.46076]
[1761049233449,0.3459,3905.9,3905.7,0.92466]
[1761049233646,0.5608,3905.9,3905.8,0.4506]
[1761049233948,0.3459,3905.9,3905.8,0.4506]
[1761049234254,0.3459,3905.9,3905.8,0.6908]
[1761049234842,0.7752,3905.9,3905.8,0.4506]
[1761049235042,0.7752,3905.7,3905.6,0.68447]
[1761049235243,0.7752,3905.7,3905.6,9.4457]
[1761049235443,0.7752,3905.7,3905.6,0.2237]
[1761049235841,0.2149,3905.3,3904.7,1.15221]
[1761049236044,0.5608,3905.3,3905.2,9.90652]
[1761049236244,0.5608,3905.3,3905.2,10.13342]
[1761049236445,0.5608,3904.8,3904.7,0.2237]
[1761049236641,0.3459,3904.8,3904.7,0.6908]
[1761049238150,0.7752,3904.8,3904.7,0.4506]
[1761049238460,0.3459,3904.8,3904.7,0.6908]
[1761049238651,0.3459,3905.0,3904.9,0.6908]
[1761049238850,0.80675,3905.0,3904.9,0.6908]
[1761049239053,1.36715,3905.0,3904.9,0.2237]
[1761049239261,1.15275,3905.0,3904.9,0.91146]
[1761049239551,1.36715,3905.0,3904.9,0.4506]
[1761049239751,0.3459,3905.0,3904.9,1.15166]
[1761049239945,0.3459,3905.4,3905.3,0.4506]
[1761049240250,0.5608,3905.4,3905.3,0.4506]
[1761049240556,0.5608,3905.4,3905.3,0.91141]
[1761049240951,0.477,3905.5,3905.4,0.4608]
[1761049241152,0.477,3905.5,3905.4,0.9114]
[1761049241153,1.15269,3905.5,3905.4,0.9114]
[1761049241460,0.7752,3905.3,3905.2,0.68451]
[1761049241650,0.7752,3905.3,3905.2,0.91141]
[1761049241847,0.5608,3904.9,3904.8,1.59660755]
[1761049242046,0.3459,3904.9,3904.8,1.15167]
[1761049242255,0.80673,3905.2,3905.1,0.4506]
[1761049242752,1.02162,3905.2,3905.1,0.4506]
[1761049242957,1.23602,3905.2,3905.1,0.4506]
[1761049243149,1.23602,3905.2,3904.8,1.36779986]
[1761049243150,0.46085,3905.0,3904.8,1.36779986]
[1761049243345,1.23607,3904.8,3904.7,0.46088]
[1761049243551,1.23607,3904.8,3904.7,9.91358]
[1761049243760,0.7752,3904.8,3904.7,10.82388739]
[1761049244256,0.7752,3904.8,3904.7,10.14048]
[1761049244456,1.23607,3904.8,3904.7,0.4506]
[1761049244667,1.23607,3904.8,3904.7,1.13365941]
[1761049244962,0.7752,3904.8,3904.7,1.59453941]
[1761049245360,0.7752,3904.8,3904.7,0.91148]
[1761049245660,1.23607,3904.8,3904.7,0.91148]
[1761049245856,1.23607,3904.8,3904.7,0.2237]
[1761049246458,1.23607,3904.8,3904.7,0.68458]
[1761049247362,0.7752,3904.8,3904.7,0.91148]
[1761049247566,0.7752,3904.8,3904.7,0.68458]
[1761049247758,0.7752,3904.8,3904.7,0.91148]
[1761049248264,0.46088,3904.7,3904.6,0.91351673]
[1761049248459,1.36721,3904.5,3904.4,0.91351673]
[1761049248658,0.7752,3904.3,3904.2,1.13721673]
[1761049248849,0.7752,3904.3,3904.2,0.91351673]
[1761049249161,0.7752,3904.3,3904.2,0.4506]
[1761049250858,0.0027,3904.5,3904.4,0.6908]
[1761049251065,0.0027,3904.5,3904.4,10.83006177]
[1761049251259,0.0027,3904.5,3904.4,9.9188]
[1761049251460,0.6919,3905.0,3904.4,12.2011751]
[1761049251657,0.346,3905.0,3904.9,1.13378433]
[1761049251957,0.4293,3904.8,3904.7,1.36775433]
[1761049252264,0.3459,3904.8,3904.7,1.15168]
[1761049252451,0.1311,3905.0,3904.7,0.6908]
[1761049252656,0.6919,3905.0,3904.9,0.91146]